Workbook

Sheet Instructions
E3: Indoor Water Use Reduction Calculator LEED v4 WE Prerequisite Indoor Water Use Reduction and WE Credit Indoor Water Use Reduction
E5: Step 1.
E6: Enable macros.
E7: Note: This calculator is for use with Excel for Mac 2011 and Excel 2007 or later.
E9: Step 2.
E10: Unit of measurement | L10: IP units
E11: Note: This selection must match the unit of measurement chosen during project registration.
E13: Step 3.
E14: Complete the Flush and/or Flow tables on the Group tab.
E16: Note: Projects with extremely complex occupancy and/or fixture usage patterns (such as where different types of occupants have different annual days of operation and use fixtures with differing flush and flow rates within the building) may complete a separate calculator tab to represent the usage for complex scenarios.
E19: Step 4.
E20: Upload the completed spreadsheet to LEED Online. Complete any related summary fields in the LEED credit form with the results of the calculator.
C24: Assumptions
C25: Fixture Type | F25: Gender | G25: Maximum Installed Flush/Flow Rate | K25: Duration | N25: Uses per Day | U25: DEFAULT Uses per Day
G26: IP | I26: SI | K26: Non- Residential (sec) | L26: Residential (sec) | N26: Employees (FTE) | O26: Visitors | P26: Retail Customers | Q26: Students | R26: Residential | U26: Employees (FTE) | V26: Visitors | W26: Retail Customers | X26: Students | Y26: Residential
C27: Toilet | F27: Male | G27: 1.6 | H27: gpf | I27: 6 | J27: lpf | K27: n/a | L27: n/a | N27: 1 | O27: 0.1 | P27: 0.1 | Q27: 1 | R27: 5 | U27: 1 | V27: 0.1 | W27: 0.1 | X27: 1 | Y27: 5
C28: Toilet | F28: Female | G28: 1.6 | H28: gpf | I28: 6 | J28: lpf | K28: n/a | L28: n/a | N28: 3 | O28: 0.5 | P28: 0.2 | Q28: 3 | R28: 5 | U28: 3 | V28: 0.5 | W28: 0.2 | X28: 3 | Y28: 5
C29: Urinal | F29: Male | G29: 1 | H29: gpf | I29: 3.8 | J29: lpf | K29: n/a | L29: n/a | N29: 2 | O29: 0.4 | P29: 0.1 | Q29: 2 | R29: 0 | U29: 2 | V29: 0.4 | W29: 0.1 | X29: 2 | Y29: 0
C30: Public lavatory (restroom) faucet | F30: n/a | G30: 0.5 | H30: gpm | I30: 1.9 | J30: lpm | K30: 30 | L30: 0 | N30: 3 | O30: 0.5 | P30: 0.2 | Q30: 3 | R30: 0 | U30: 3 | V30: 0.5 | W30: 0.2 | X30: 3 | Y30: 0
C31: Private lavatory faucet | F31: n/a | G31: 2.2 | H31: gpm | I31: 8.3 | J31: lpm | K31: 30 | L31: 60 | N31: 0 | O31: 0 | P31: 0 | Q31: 0 | R31: 5 | U31: 0 | V31: 0 | W31: 0 | X31: 0 | Y31: 5
C32: Kitchen faucet | F32: n/a | G32: 2.2 | H32: gpm | I32: 8.3 | J32: lpm | K32: 15 | L32: 60 | N32: 1 | O32: 0 | P32: 0 | Q32: 0 | R32: 4 | U32: 1 | V32: 0 | W32: 0 | X32: 0 | Y32: 4
C33: Showerhead | F33: n/a | G33: 2.5 | H33: gpm | I33: 9.5 | J33: lpm | K33: 300 | L33: 480 | N33: 0.1 | O33: 0 | P33: 0 | Q33: 0 | R33: 1 | U33: 0.1 | V33: 0 | W33: 0 | X33: 0 | Y33: 1
C34: TRUE
C35: Default uses per day
C36: Default uses can be modified in special circumstances. Provide a narrative in the special circumstances section of the LEED credit form explaining the modifications. Baseline and installed case usage values must match and cannot be modified independently. Non-default uses are italicized.
S39: V01 | U39: UOM
S40: Copyright © 2012 | U40: =IF(L10="IP units",1,2) -> 1 | V40: 1 = IP, 2 = SI
S41: U.S. Green Building Council
S42: All Rights Reserved | V42: Toilet | W42: Urinal
U43: Toilet | V43: Conventional Water Closet | W43: Conventional Urinal
U44: Urinal | V44: Low-Flow Water Closet | W44: Low-Flow Urinal
V45: Dual-Flush Water Closet | W45: Non-Water Urinal
V46: Composting Toilet

Sheet Base Calc (hidden)
B2: =REPLACE(CELL("filename",A1),1,FIND("]",CELL("filename",A1)),"") -> Base Calc
B4: Table 1. Project Information
B5: Enter project occupancy information. This information should be consistent with occupancy numbers used in other LEED credits. The default gender mix is half male and half female. If necessary, modify the Male and Female occupant type columns for non-default gender mix. | AB5: FLUSH | AD5: FLOW
D6: Employees (FTE) | E6: Visitors | F6: Retail Customers | G6: Students (For Schools only) | H6: Residential | I6: Other (specify) | AB6: ref # if included | AC6: ref list w/o blanks | AD6: ref # if included | AE6: ref list w/o blanks
B7: Total | Y7: Baseline | Z7: Flush | AA7: =I22 -> 0 | AB7: =IF(I19="Yes",B19,"") ->  | AC7: =IFERROR(INDEX(AB7:AB9,SMALL((IF(LEN(AB7:AB9),ROW(INDIRECT("1:"&ROWS(AB7:AB9))))),ROW(A1)),1),"") ->  | AD7: =IF(I45="Yes",B45,"") ->  | AE7: =IFERROR(INDEX(AD7:AD10,SMALL((IF(LEN(AD7:AD10),ROW(INDIRECT("1:"&ROWS(AD7:AD10))))),ROW(A1)),1),"") -> 
B8: Male | D8: =D7/2 -> 0 | E8: 0 | F8: 0 | G8: 0 | H8: 0 | I8: 0 | Z8: Flow | AA8: =I49 -> 0 | AB8: =IF(I20="Yes",B20,"") ->  | AC8: =IFERROR(INDEX(AB7:AB9,SMALL((IF(LEN(AB7:AB9),ROW(INDIRECT("1:"&ROWS(AB7:AB9))))),ROW(A2)),1),"") ->  | AD8: =IF(I46="Yes",B46,"") ->  | AE8: =IFERROR(INDEX(AD7:AD10,SMALL((IF(LEN(AD7:AD10),ROW(INDIRECT("1:"&ROWS(AD7:AD10))))),ROW(A2)),1),"") -> 
B9: Female | D9: =D7/2 -> 0 | E9: 0 | F9: 0 | G9: 0 | H9: 0 | I9: 0 | Y9: Design | Z9: Flush | AA9: =I37 -> 0 | AB9: =IF(I21="Yes",B21,"") ->  | AC9: =IFERROR(INDEX(AB7:AB9,SMALL((IF(LEN(AB7:AB9),ROW(INDIRECT("1:"&ROWS(AB7:AB9))))),ROW(A3)),1),"") ->  | AD9: =IF(I47="Yes",B47,"") ->  | AE9: =IFERROR(INDEX(AD7:AD10,SMALL((IF(LEN(AD7:AD10),ROW(INDIRECT("1:"&ROWS(AD7:AD10))))),ROW(A3)),1),"") -> 
B10: Determine the percent of males expected to use urinals (enter 100% if all male restrooms have urinals, 0% if the project contains no urinals, etc) | Z10: Flow | AA10: =I64 -> 0 | AD10: =IF(I48="Yes",B48,"") ->  | AE10: =IFERROR(INDEX(AD7:AD10,SMALL((IF(LEN(AD7:AD10),ROW(INDIRECT("1:"&ROWS(AD7:AD10))))),ROW(A4)),1),"") -> 
B11: Percent of males expected to use restrooms with urinals | I11: 1
B12: Enter the number of days the project is accessible to employees or FTE.
B13: Annual days of operation | I13: 365
B14: =IF(I13>365,"Annual days of operation must be between 1 and 365.","") -> 
B15: Table 2. Flush Fixtures Baseline Case
B16: 1. Indicate whether the Fixture Type is present on the project using the Included in Project column. 2. If necessary, modify the Uses per Day column for non-default uses.
B17: Fixture Reference | C17: Baseline Case Fixture Type | G17: Gender | H17: =IF(Instructions!U40=1,"Default Flush Rate (gpf)","Default Flush Rate (lpf)") -> Default Flush Rate (gpf) | I17: Included in Project | K17: Employees (FTE) | M17: Visitors | O17: Retail Customers | Q17: Students | S17: Residential | U17: =IF($I$6="Other (please specify)","Other",$I$6) -> Other (specify) | X17: =IF(Instructions!$U$40=1,"Total Daily Water Use (gpf)","Total Daily Water Use (lpf)") -> Total Daily Water Use (gpf)
K18: Uses per Day | L18: =IF(Instructions!$U$40=1,"Daily Water Use (gpf)","Daily Water Use (lpf)") -> Daily Water Use (gpf) | M18: Uses per Day | N18: =IF(Instructions!$U$40=1,"Daily Water Use (gpf)","Daily Water Use (lpf)") -> Daily Water Use (gpf) | O18: Uses per Day | P18: =IF(Instructions!$U$40=1,"Daily Water Use (gpf)","Daily Water Use (lpf)") -> Daily Water Use (gpf) | Q18: Uses per Day | R18: =IF(Instructions!$U$40=1,"Daily Water Use (gpf)","Daily Water Use (lpf)") -> Daily Water Use (gpf) | S18: Uses per Day | T18: =IF(Instructions!$U$40=1,"Daily Water Use (gpf)","Daily Water Use (lpf)") -> Daily Water Use (gpf) | U18: Uses per Day | V18: =IF(Instructions!$U$40=1,"Daily Water Use (gpf)","Daily Water Use (lpf)") -> Daily Water Use (gpf)
B19: _1 | C19: =Instructions!$C$27 -> Toilet | G19: =Instructions!$F$27 -> Male | H19: =IF(Instructions!$U$40=1,Instructions!$G$27,Instructions!$I$27) -> 1.6 | K19: =Instructions!N27+((1-I11)*Instructions!N28) -> 1 | L19: =H19*D8*K19 -> 0 | M19: =Instructions!O27+((1-I11)*Instructions!O28) -> 0.1 | N19: =$H19*E8*M19 -> 0 | O19: =Instructions!P27+((1-I11)*Instructions!P28) -> 0.1 | P19: =$H19*F8*O19 -> 0 | Q19: =Instructions!Q27+((1-I11)*Instructions!Q28) -> 1 | R19: =$H19*G8*Q19 -> 0 | S19: =Instructions!R27+((1-I11)*Instructions!R28) -> 5 | T19: =$H19*H8*S19 -> 0 | V19: =$H19*I8*U19 -> 0 | X19: =IF(I19="Yes",SUM(L19,R19,N19,P19,T19,V19),0) -> 0
B20: _2 | C20: =Instructions!$C$28 -> Toilet | G20: =Instructions!$F$28 -> Female | H20: =IF(Instructions!$U$40=1,Instructions!$G$28,Instructions!$I$28) -> 1.6 | K20: =Instructions!$N$28 -> 3 | L20: =H20*D9*K20 -> 0 | M20: =Instructions!$O$28 -> 0.5 | N20: =$H20*E9*M20 -> 0 | O20: =Instructions!$P$28 -> 0.2 | P20: =$H20*F9*O20 -> 0 | Q20: =Instructions!$Q$28 -> 3 | R20: =$H20*G9*Q20 -> 0 | S20: =Instructions!$R$28 -> 5 | T20: =$H20*H9*S20 -> 0 | V20: =$H20*I9*U20 -> 0 | X20: =IF(I20="Yes",SUM(L20,R20,N20,P20,T20,V20),0) -> 0
B21: _3 | C21: =Instructions!$C$29 -> Urinal | G21: =Instructions!$F$29 -> Male | H21: =IF(Instructions!$U$40=1,Instructions!$G$29,Instructions!$I$29) -> 1 | K21: =Instructions!N29*I11 -> 2 | L21: =H21*D8*K21 -> 0 | M21: =Instructions!O29*I11 -> 0.4 | N21: =$H21*E8*M21 -> 0 | O21: =Instructions!P29*I11 -> 0.1 | P21: =$H21*F8*O21 -> 0 | Q21: =Instructions!Q29*I11 -> 2 | R21: =$H21*G8*Q21 -> 0 | S21: =Instructions!$R$29*I11 -> 0 | T21: =$H21*H8*S21 -> 0 | V21: =$H21*I8*U21 -> 0 | X21: =IF(I21="Yes",SUM(L21,R21,N21,P21,T21,V21),0) -> 0
B22: =IF(Instructions!$U$40=1,"Baseline case annual flush volume (gallons/year)","Baseline case annual flush volume (liters/year)") -> Baseline case annual flush volume (gallons/year) | I22: =(SUM(X19:X21)*$I$13) -> 0
B24: For projects with dual-flush toilets
B25: Enter the resulting per flush rate into the design case flush rate section for toilet. | D25: =IF(Instructions!$U$40=1,"Low Flush (gpf)","Low Flush (lpf)") -> Low Flush (gpf) | E25: =IF(Instructions!$U$40=1,"High Flush (gpf)","High Flush (lpf)") -> High Flush (gpf) | F25: =IF(Instructions!$U$40=1,"Average Flush Rate (gpf)","Average Flush Rate (lpf)") -> Average Flush Rate (gpf)
F26: =((D26*2)+E26)/3 -> 0
B28: Table 3. Flush Fixtures Design Case
B29: 1. Select the equivalent baseline fixture in the Fixture Reference column. 2. Select the Fixture Type installed on the project. 3. Enter the Flush Rate identified by the manufacturer - for dual flush toilets, use the dual flush calculator to determine average flush rate. 4. Enter Fixture Information that matches the information provided for cutsheets. 5. Enter Percent of Occupants with access to the fixture. If the fixture is installed in all restrooms, use 100%. Percentages for each Fixture Reference must total 100%.
B30: Fixture Reference | C30: Design Case Fixture Type | E30: Gender | F30: Fixture Information | H30: =IF(Instructions!U40=1,"Flush Rate (gpf)","Flush Rate (lpf)") -> Flush Rate (gpf) | I30: Percent of Occupants (%) | K30: Employees (FTE) | M30: Visitors | O30: Retail Customers | Q30: Students | S30: Residential | U30: =IF($I$6="Other (please specify)","Other",$I$6) -> Other (specify) | X30: =IF(Instructions!$U$40=1,"Total Daily Water Use (gpf)","Total Daily Water Use (lpf)") -> Total Daily Water Use (gpf)
F31: Fixture Manufact. | G31: Fixture Model | K31: Uses per Day | L31: =IF(Instructions!$U$40=1,"Daily Water Use (gpf)","Daily Water Use (lpf)") -> Daily Water Use (gpf) | M31: Uses per Day | N31: =IF(Instructions!$U$40=1,"Daily Water Use (gpf)","Daily Water Use (lpf)") -> Daily Water Use (gpf) | O31: Uses per Day | P31: =IF(Instructions!$U$40=1,"Daily Water Use (gpf)","Daily Water Use (lpf)") -> Daily Water Use (gpf) | Q31: Uses per Day | R31: =IF(Instructions!$U$40=1,"Daily Water Use (gpf)","Daily Water Use (lpf)") -> Daily Water Use (gpf) | S31: Uses per Day | T31: =IF(Instructions!$U$40=1,"Daily Water Use (gpf)","Daily Water Use (lpf)") -> Daily Water Use (gpf) | U31: Uses per Day | V31: =IF(Instructions!$U$40=1,"Daily Water Use (gpf)","Daily Water Use (lpf)") -> Daily Water Use (gpf)
A32: =IF(B32>=0,0,0) -> 0 | E32: =IF(ISBLANK(B32),"",VLOOKUP(B32,$B$17:$V$21,6,0)) ->  | K32: =IF(ISBLANK(B32),0,VLOOKUP($B32,$B$18:$V$21,10,0)) -> 0 | L32: =IF(E32="Male",H32*K32*D$8*(I32/100),H32*K32*D$9*(I32/100)) -> 0 | M32: =IF(ISBLANK(B32),0,VLOOKUP($B32,$B$18:$V$21,12,0)) -> 0 | N32: =IF(E32="Male",$H32*M32*E$8*($I32/100),$H32*M32*E$9*($I32/100)) -> 0 | O32: =IF(ISBLANK(B32),0,VLOOKUP($B32,$B$18:$V$21,14,0)) -> 0 | P32: =IF(E32="Male",$H32*O32*F$8*($I32/100),$H32*O32*F$9*($I32/100)) -> 0 | Q32: =IF(ISBLANK(B32),0,VLOOKUP($B32,$B$18:$V$21,16,0)) -> 0 | R32: =IF(E32="Male",$H32*Q32*G$8*($I32/100),$H32*Q32*G$9*($I32/100)) -> 0 | S32: =IF(ISBLANK(B32),0,VLOOKUP($B32,$B$18:$V$21,18,0)) -> 0 | T32: =IF(E32="Male",$H32*S32*H$8*($I32/100),$H32*S32*H$9*($I32/100)) -> 0 | U32: =IF(ISBLANK(B32),0,VLOOKUP($B32,$B$18:$V$21,20,0)) -> 0 | V32: =IF(E32="Male",$H32*U32*I$8*($I32/100),$H32*U32*I$9*($I32/100)) -> 0 | X32: =SUM(L32,R32,N32,P32,T32,V32) -> 0
A33: =IF(B33>=0,0,0) -> 0 | E33: =IF(ISBLANK(B33),"",VLOOKUP(B33,$B$17:$V$21,6,0)) ->  | K33: =IF(ISBLANK(B33),0,VLOOKUP($B33,$B$18:$V$21,10,0)) -> 0 | L33: =IF(E33="Male",H33*K33*D$8*(I33/100),H33*K33*D$9*(I33/100)) -> 0 | M33: =IF(ISBLANK(B33),0,VLOOKUP($B33,$B$18:$V$21,12,0)) -> 0 | N33: =IF(E33="Male",$H33*M33*E$8*($I33/100),$H33*M33*E$9*($I33/100)) -> 0 | O33: =IF(ISBLANK(B33),0,VLOOKUP($B33,$B$18:$V$21,14,0)) -> 0 | P33: =IF(E33="Male",$H33*O33*F$8*($I33/100),$H33*O33*F$9*($I33/100)) -> 0 | Q33: =IF(ISBLANK(B33),0,VLOOKUP($B33,$B$18:$V$21,16,0)) -> 0 | R33: =IF(E33="Male",$H33*Q33*G$8*($I33/100),$H33*Q33*G$9*($I33/100)) -> 0 | S33: =IF(ISBLANK(B33),0,VLOOKUP($B33,$B$18:$V$21,18,0)) -> 0 | T33: =IF(E33="Male",$H33*S33*H$8*($I33/100),$H33*S33*H$9*($I33/100)) -> 0 | U33: =IF(ISBLANK(B33),0,VLOOKUP($B33,$B$18:$V$21,20,0)) -> 0 | V33: =IF(E33="Male",$H33*U33*I$8*($I33/100),$H33*U33*I$9*($I33/100)) -> 0 | X33: =SUM(L33,R33,N33,P33,T33,V33) -> 0
A34: 0 | E34: =IF(ISBLANK(B34),"",VLOOKUP(B34,$B$17:$V$21,6,0)) ->  | K34: 0 | L34: =IF(E34="Male",H34*K34*D$8*(I34/100),H34*K34*D$9*(I34/100)) -> 0 | M34: 0 | N34: =IF(E34="Male",$H34*M34*E$8*($I34/100),$H34*M34*E$9*($I34/100)) -> 0 | O34: 0 | P34: =IF(E34="Male",$H34*O34*F$8*($I34/100),$H34*O34*F$9*($I34/100)) -> 0 | Q34: 0 | R34: =IF(E34="Male",$H34*Q34*G$8*($I34/100),$H34*Q34*G$9*($I34/100)) -> 0 | S34: 0 | T34: =IF(E34="Male",$H34*S34*H$8*($I34/100),$H34*S34*H$9*($I34/100)) -> 0 | U34: 0 | V34: =IF(E34="Male",$H34*U34*I$8*($I34/100),$H34*U34*I$9*($I34/100)) -> 0 | X34: =SUM(L34,R34,N34,P34,T34,V34) -> 0
E35: =IF(ISBLANK(B35),"",VLOOKUP(B35,$B$17:$V$21,6,0)) ->  | K35: 0 | L35: =IF(E35="Male",H35*K35*D$8*(I35/100),H35*K35*D$9*(I35/100)) -> 0 | M35: 0 | N35: =IF(E35="Male",$H35*M35*E$8*($I35/100),$H35*M35*E$9*($I35/100)) -> 0 | O35: 0 | P35: =IF(E35="Male",$H35*O35*F$8*($I35/100),$H35*O35*F$9*($I35/100)) -> 0 | Q35: 0 | R35: =IF(E35="Male",$H35*Q35*G$8*($I35/100),$H35*Q35*G$9*($I35/100)) -> 0 | S35: 0 | T35: =IF(E35="Male",$H35*S35*H$8*($I35/100),$H35*S35*H$9*($I35/100)) -> 0 | U35: 0 | V35: =IF(E35="Male",$H35*U35*I$8*($I35/100),$H35*U35*I$9*($I35/100)) -> 0 | X35: =SUM(L35,R35,N35,P35,T35,V35) -> 0
E36: =IF(ISBLANK(B36),"",VLOOKUP(B36,$B$17:$V$21,6,0)) ->  | K36: 0 | L36: =IF(E36="Male",H36*K36*D$8*(I36/100),H36*K36*D$9*(I36/100)) -> 0 | M36: 0 | N36: =IF(E36="Male",$H36*M36*E$8*($I36/100),$H36*M36*E$9*($I36/100)) -> 0 | O36: 0 | P36: =IF(E36="Male",$H36*O36*F$8*($I36/100),$H36*O36*F$9*($I36/100)) -> 0 | Q36: 0 | R36: =IF(E36="Male",$H36*Q36*G$8*($I36/100),$H36*Q36*G$9*($I36/100)) -> 0 | S36: 0 | T36: =IF(E36="Male",$H36*S36*H$8*($I36/100),$H36*S36*H$9*($I36/100)) -> 0 | U36: 0 | V36: =IF(E36="Male",$H36*U36*I$8*($I36/100),$H36*U36*I$9*($I36/100)) -> 0 | X36: =SUM(L36,R36,N36,P36,T36,V36) -> 0
A37: A | B37: =IF(Instructions!$U$40=1,"Design case annual flush volume (gallons/year)","Design case annual flush volume (liters/year)") -> Design case annual flush volume (gallons/year) | I37: =(SUM(X32:X36)*$I$13) -> 0
B41: Table 4. Flow Fixtures Baseline Case
B42: 1. Indicate whether the Fixture Type is present on the project using the Included in Project column. 2. If necessary, modify the Uses per Day column for non-default uses.
B43: Fixture Reference | C43: Baseline Case Fixture Type | F43: =IF(Instructions!U40=1,"Default Flow Rate (gpm)","Default Flow Rate (lpm)") -> Default Flow Rate (gpm) | G43: Duration | I43: =I17 -> Included in Project | K43: Employees (FTE) | M43: Visitors | O43: Retail Customers | Q43: Students | S43: Residential | U43: =IF($I$6="Other (please specify)","Other",$I$6) -> Other (specify) | X43: =IF(Instructions!$U$40=1,"Total Daily Water Use (gpf)","Total Daily Water Use (lpm)") -> Total Daily Water Use (gpf)
G44: Non- Residential (sec) | H44: Residential (sec) | K44: Uses per Day | L44: =IF(Instructions!$U$40=1,"Daily Water Use (gpf)","Daily Water Use (lpm)") -> Daily Water Use (gpf) | M44: Uses per Day | N44: =IF(Instructions!$U$40=1,"Daily Water Use (gpf)","Daily Water Use (lpm)") -> Daily Water Use (gpf) | O44: Uses per Day | P44: =IF(Instructions!$U$40=1,"Daily Water Use (gpf)","Daily Water Use (lpm)") -> Daily Water Use (gpf) | Q44: Uses per Day | R44: =IF(Instructions!$U$40=1,"Daily Water Use (gpf)","Daily Water Use (lpm)") -> Daily Water Use (gpf) | S44: Uses per Day | T44: =IF(Instructions!$U$40=1,"Daily Water Use (gpf)","Daily Water Use (lpm)") -> Daily Water Use (gpf) | U44: Uses per Day | V44: =IF(Instructions!$U$40=1,"Daily Water Use (gpf)","Daily Water Use (lpm)") -> Daily Water Use (gpf)
B45: _A | C45: =Instructions!$C$30 -> Public lavatory (restroom) faucet | F45: =IF(Instructions!$U$40=1,Instructions!$G$30,Instructions!$I$30) -> 0.5 | G45: =Instructions!$K$30 -> 30 | H45: =Instructions!$L$30 -> 0 | K45: =Instructions!$N$30 -> 3 | L45: =$F45*($G45/60)*$K45*D$7 -> 0 | M45: =Instructions!$O$30 -> 0.5 | N45: =$F45*($G45/60)*M45*$E$7 -> 0 | O45: =Instructions!$P$30 -> 0.2 | P45: =$F45*($G45/60)*O45*$F$7 -> 0 | Q45: =Instructions!$Q$30 -> 3 | R45: =$F45*($G45/60)*$Q45*$G$7 -> 0 | S45: =Instructions!$R$30 -> 0 | T45: =F45*($H45/60)*S45*$H$7 -> 0 | V45: =$F45*($G45/60)*U45*$I$7 -> 0 | X45: =IF(I45="Yes",SUM(L45,R45,N45,P45,T45,V45),0) -> 0
B46: _B | C46: =Instructions!$C$31 -> Private lavatory faucet | F46: =IF(Instructions!$U$40=1,Instructions!$G$31,Instructions!$I$31) -> 2.2 | G46: =Instructions!$K$31 -> 30 | H46: =Instructions!$L$31 -> 60 | K46: =Instructions!$N$31 -> 0 | L46: =$F46*($G46/60)*$K46*D$7 -> 0 | M46: =Instructions!$O$31 -> 0 | N46: =$F46*($G46/60)*M46*$E$7 -> 0 | O46: =Instructions!$P$31 -> 0 | P46: =$F46*($G46/60)*O46*$F$7 -> 0 | Q46: =Instructions!$Q$31 -> 0 | R46: =$F46*($G46/60)*$Q46*$G$7 -> 0 | S46: =Instructions!$R$31 -> 5 | T46: =F46*($H46/60)*S46*$H$7 -> 0 | V46: =$F46*($G46/60)*U46*$I$7 -> 0 | X46: =IF(I46="Yes",SUM(L46,R46,N46,P46,T46,V46),0) -> 0
B47: _C | C47: =Instructions!$C$32 -> Kitchen faucet | F47: =IF(Instructions!$U$40=1,Instructions!$G$32,Instructions!$I$32) -> 2.2 | G47: =Instructions!$K$32 -> 15 | H47: =Instructions!$L$32 -> 60 | K47: =Instructions!$N$32 -> 1 | L47: =$F47*($G47/60)*$K47*D$7 -> 0 | M47: =Instructions!$O$32 -> 0 | N47: =$F47*($G47/60)*M47*$E$7 -> 0 | O47: =Instructions!$P$32 -> 0 | P47: =$F47*($G47/60)*O47*$F$7 -> 0 | Q47: =Instructions!$Q$32 -> 0 | R47: =$F47*($G47/60)*$Q47*$G$7 -> 0 | S47: =Instructions!$R$32 -> 4 | T47: =F47*($H47/60)*S47*$H$7 -> 0 | V47: =$F47*($G47/60)*U47*$I$7 -> 0 | X47: =IF(I47="Yes",SUM(L47,R47,N47,P47,T47,V47),0) -> 0
B48: _D | C48: =Instructions!$C$33 -> Showerhead | F48: =IF(Instructions!$U$40=1,Instructions!$G$33,Instructions!$I$33) -> 2.5 | G48: =Instructions!$K$33 -> 300 | H48: =Instructions!$L$33 -> 480 | K48: =Instructions!$N$33 -> 0.1 | L48: =$F48*($G48/60)*$K48*D$7 -> 0 | M48: =Instructions!$O$33 -> 0 | N48: =$F48*($G48/60)*M48*$E$7 -> 0 | O48: =Instructions!$P$33 -> 0 | P48: =$F48*($G48/60)*O48*$F$7 -> 0 | Q48: =Instructions!$Q$33 -> 0 | R48: =$F48*($G48/60)*$Q48*$G$7 -> 0 | S48: =Instructions!$R$33 -> 1 | T48: =F48*($H48/60)*S48*$H$7 -> 0 | V48: =$F48*($G48/60)*U48*$I$7 -> 0 | X48: =IF(I48="Yes",SUM(L48,R48,N48,P48,T48,V48),0) -> 0
B49: =IF(Instructions!$U$40=1,"Baseline case annual flow volume (gallons/year)","Baseline case annual flow volume (liters/year)") -> Baseline case annual flow volume (gallons/year) | I49: =(SUM(X45:X48)*$I$13) -> 0
B51: For projects with metering faucets
B52: Enter the resulting per minute flow rate into the design case flow rate section for public lavatory faucet. | D52: =IF(Instructions!$U$40=1,"Gallons per Cycle","Liters per Cycle") -> Gallons per Cycle | E52: Cycle Duration (sec) | F52: =IF(Instructions!$U$40=1,"Flow Rate (gpm)","Flow Rate (lpm)") -> Flow Rate (gpm)
F53: =IFERROR((D53*60)/E53,0) -> 0
B55: Table 5. Flow Fixtures Design Case
B56: 1. Select the equivalent baseline fixture in the Fixture Reference column. 2. Select the Fixture Type installed on the project. 3. Enter the Flow Rate identified by the manufacturer - for metering faucets, use the metering faucet calculator to determine flow rate. 4. Enter Fixture Information that matches the information provided for cutsheets. 5. Enter Percent of Occupants with access to the fixture. If the fixture is installed in all restrooms, use 100%. Percentages for each Fixture Reference must total 100%.
B57: Fixture Reference | C57: Design Case Fixture Type | D57: =IF(Instructions!U40=1,"Flow Rate (gpm)","Flow Rate (lpm)") -> Flow Rate (gpm) | E57: Percent of Occupants (%) | F57: Fixture Information | H57: Duration | K57: Employees (FTE) | M57: Visitors | O57: Retail Customers | Q57: Students | S57: Residential | U57: =IF($I$6="Other (please specify)","Other",$I$6) -> Other (specify) | X57: =IF(Instructions!$U$40=1,"Total Daily Water Use (gpf)","Total Daily Water Use (lpm)") -> Total Daily Water Use (gpf)
F58: Fixture Manufact. | G58: Fixture Model | H58: Non- Residential (sec) | I58: Residential (sec) | K58: Uses per Day | L58: =IF(Instructions!$U$40=1,"Daily Water Use (gpf)","Daily Water Use (lpm)") -> Daily Water Use (gpf) | M58: Uses per Day | N58: =IF(Instructions!$U$40=1,"Daily Water Use (gpf)","Daily Water Use (lpm)") -> Daily Water Use (gpf) | O58: Uses per Day | P58: =IF(Instructions!$U$40=1,"Daily Water Use (gpf)","Daily Water Use (lpm)") -> Daily Water Use (gpf) | Q58: Uses per Day | R58: =IF(Instructions!$U$40=1,"Daily Water Use (gpf)","Daily Water Use (lpm)") -> Daily Water Use (gpf) | S58: Uses per Day | T58: =IF(Instructions!$U$40=1,"Daily Water Use (gpf)","Daily Water Use (lpm)") -> Daily Water Use (gpf) | U58: Uses per Day | V58: =IF(Instructions!$U$40=1,"Daily Water Use (gpf)","Daily Water Use (lpm)") -> Daily Water Use (gpf)
A59: =IF(B59>=0,1,1) -> 1 | C59: =IF(ISBLANK(B59),"",VLOOKUP(B59,B$43:V$48,2,0)) ->  | H59: =IF(ISBLANK(B59),0,VLOOKUP(B59,$B$45:$U$48,6,0)) -> 0 | I59: =IF(ISBLANK(B59),0,VLOOKUP(B59,$B$45:$U$48,7,0)) -> 0 | K59: =IF(ISBLANK(B59),0,VLOOKUP($B59,$B$43:$V$48,10,0)) -> 0 | L59: =$D59*($H59/60)*K59*($D$7*($E59/100)) -> 0 | M59: =IF(ISBLANK(B59),0,VLOOKUP($B59,$B$43:$V$48,12,0)) -> 0 | N59: =$D59*($H59/60)*M59*(E$7*($E59/100)) -> 0 | O59: =IF(ISBLANK(B59),0,VLOOKUP($B59,$B$43:$V$48,14,0)) -> 0 | P59: =$D59*($H59/60)*O59*(F$7*($E59/100)) -> 0 | Q59: =IF(ISBLANK(B59),0,VLOOKUP($B59,$B$43:$V$48,16,0)) -> 0 | R59: =$D59*($H59/60)*Q59*($G$7*($E59/100)) -> 0 | S59: =IF(ISBLANK(B59),0,VLOOKUP($B59,$B$43:$V$48,18,0)) -> 0 | T59: =$D59*($I59/60)*S59*($H$7*($E59/100)) -> 0 | U59: =IF(ISBLANK(B59),0,VLOOKUP($B59,$B$43:$V$48,20,0)) -> 0 | V59: =$D59*($H59/60)*U59*(I$7*($E59/100)) -> 0 | X59: =SUM(L59,R59,N59,P59,T59,V59) -> 0
A60: =IF(B60>=0,1,1) -> 1 | C60: =IF(ISBLANK(B60),"",VLOOKUP(B60,B$43:V$48,2,0)) ->  | H60: =IF(ISBLANK(B60),0,VLOOKUP(B60,$B$45:$U$48,6,0)) -> 0 | I60: =IF(ISBLANK(B60),0,VLOOKUP(B60,$B$45:$U$48,7,0)) -> 0 | K60: =IF(ISBLANK(B60),0,VLOOKUP($B60,$B$43:$V$48,10,0)) -> 0 | L60: =$D60*($H60/60)*K60*($D$7*($E60/100)) -> 0 | M60: =IF(ISBLANK(B60),0,VLOOKUP($B60,$B$43:$V$48,12,0)) -> 0 | N60: =$D60*($H60/60)*M60*(E$7*($E60/100)) -> 0 | O60: =IF(ISBLANK(B60),0,VLOOKUP($B60,$B$43:$V$48,14,0)) -> 0 | P60: =$D60*($H60/60)*O60*(F$7*($E60/100)) -> 0 | Q60: =IF(ISBLANK(B60),0,VLOOKUP($B60,$B$43:$V$48,16,0)) -> 0 | R60: =$D60*($H60/60)*Q60*($G$7*($E60/100)) -> 0 | S60: =IF(ISBLANK(B60),0,VLOOKUP($B60,$B$43:$V$48,18,0)) -> 0 | T60: =$D60*($I60/60)*S60*($H$7*($E60/100)) -> 0 | U60: =IF(ISBLANK(B60),0,VLOOKUP($B60,$B$43:$V$48,20,0)) -> 0 | V60: =$D60*($H60/60)*U60*(I$7*($E60/100)) -> 0 | X60: =SUM(L60,R60,N60,P60,T60,V60) -> 0
A61: 1 | C61: =IF(ISBLANK(B61),"",VLOOKUP(B61,B$43:V$48,2,0)) ->  | H61: =IF(ISBLANK(B61),0,VLOOKUP(B61,$B$45:$U$48,6,0)) -> 0 | I61: =IF(ISBLANK(B61),0,VLOOKUP(B61,$B$45:$U$48,7,0)) -> 0 | K61: 0 | L61: =$D61*($H61/60)*K61*($D$7*($E61/100)) -> 0 | M61: 0 | N61: =$D61*($H61/60)*M61*(E$7*($E61/100)) -> 0 | O61: 0 | P61: =$D61*($H61/60)*O61*(F$7*($E61/100)) -> 0 | Q61: 0 | R61: =$D61*($H61/60)*Q61*($G$7*($E61/100)) -> 0 | S61: 0 | T61: =$D61*($I61/60)*S61*($H$7*($E61/100)) -> 0 | U61: 0 | V61: =$D61*($H61/60)*U61*(I$7*($E61/100)) -> 0 | X61: =SUM(L61,R61,N61,P61,T61,V61) -> 0
C62: =IF(ISBLANK(B62),"",VLOOKUP(B62,B$43:V$48,2,0)) ->  | H62: =IF(ISBLANK(B62),0,VLOOKUP(B62,$B$45:$U$48,6,0)) -> 0 | I62: =IF(ISBLANK(B62),0,VLOOKUP(B62,$B$45:$U$48,7,0)) -> 0 | K62: 0 | L62: =$D62*($H62/60)*K62*($D$7*($E62/100)) -> 0 | M62: 0 | N62: =$D62*($H62/60)*M62*(E$7*($E62/100)) -> 0 | O62: 0 | P62: =$D62*($H62/60)*O62*(F$7*($E62/100)) -> 0 | Q62: 0 | R62: =$D62*($H62/60)*Q62*($G$7*($E62/100)) -> 0 | S62: 0 | T62: =$D62*($I62/60)*S62*($H$7*($E62/100)) -> 0 | U62: 0 | V62: =$D62*($H62/60)*U62*(I$7*($E62/100)) -> 0 | X62: =SUM(L62,R62,N62,P62,T62,V62) -> 0
C63: =IF(ISBLANK(B63),"",VLOOKUP(B63,B$43:V$48,2,0)) ->  | H63: =IF(ISBLANK(B63),0,VLOOKUP(B63,$B$45:$U$48,6,0)) -> 0 | I63: =IF(ISBLANK(B63),0,VLOOKUP(B63,$B$45:$U$48,7,0)) -> 0 | K63: 0 | L63: =$D63*($H63/60)*K63*($D$7*($E63/100)) -> 0 | M63: 0 | N63: =$D63*($H63/60)*M63*(E$7*($E63/100)) -> 0 | O63: 0 | P63: =$D63*($H63/60)*O63*(F$7*($E63/100)) -> 0 | Q63: 0 | R63: =$D63*($H63/60)*Q63*($G$7*($E63/100)) -> 0 | S63: 0 | T63: =$D63*($I63/60)*S63*($H$7*($E63/100)) -> 0 | U63: 0 | V63: =$D63*($H63/60)*U63*(I$7*($E63/100)) -> 0 | X63: =SUM(L63,R63,N63,P63,T63,V63) -> 0
A64: B | B64: =IF(Instructions!$U$40=1,"Design case annual flow volume (gallons/year)","Design case annual flow volume (liters/year)") -> Design case annual flow volume (gallons/year) | I64: =(SUM(X59:X63)*$I$13) -> 0

Sheet Group 1
B2: =REPLACE(CELL("filename",A1),1,FIND("]",CELL("filename",A1)),"") -> Group 1
B4: Table 1. Project Information
B5: Enter project occupancy information. This information should be consistent with occupancy numbers used in other LEED credits. The default gender mix is half male and half female. If necessary, modify the Male and Female occupant type columns for non-default gender mix. | AB5: FLUSH | AD5: FLOW
D6: Employees (FTE) | E6: Visitors | F6: Retail Customers | G6: Students (For Schools only) | H6: Residential | I6: Other (specify) | AB6: ref # if included | AC6: ref list w/o blanks | AD6: ref # if included | AE6: ref list w/o blanks
B7: Total | D7: 35 | E7: 10 | F7: 0 | G7: 0 | H7: 0 | Y7: Baseline | Z7: Flush | AA7: =I22 -> 39816 | AB7: =IF(I19="Yes",B19,"") -> _1 | AC7: =IFERROR(INDEX(AB7:AB9,SMALL((IF(LEN(AB7:AB9),ROW(INDIRECT("1:"&ROWS(AB7:AB9))))),ROW(A1)),1),"") -> _1 | AD7: =IF(I45="Yes",B45,"") -> _A | AE7: =IFERROR(INDEX(AD7:AD10,SMALL((IF(LEN(AD7:AD10),ROW(INDIRECT("1:"&ROWS(AD7:AD10))))),ROW(A1)),1),"") -> _A
B8: Male | D8: =D7/2 -> 18 | E8: =E7/2 -> 5 | F8: 0 | G8: 0 | H8: 0 | I8: 0 | Z8: Flow | AA8: =I49 -> 22806 | AB8: =IF(I20="Yes",B20,"") -> _2 | AC8: =IFERROR(INDEX(AB7:AB9,SMALL((IF(LEN(AB7:AB9),ROW(INDIRECT("1:"&ROWS(AB7:AB9))))),ROW(A2)),1),"") -> _2 | AD8: =IF(I46="Yes",B46,"") ->  | AE8: =IFERROR(INDEX(AD7:AD10,SMALL((IF(LEN(AD7:AD10),ROW(INDIRECT("1:"&ROWS(AD7:AD10))))),ROW(A2)),1),"") -> _C
B9: Female | D9: =D7/2 -> 18 | E9: 5 | F9: 0 | G9: 0 | H9: 0 | I9: 0 | Y9: Design | Z9: Flush | AA9: =I37 -> 20225.52 | AB9: =IF(I21="Yes",B21,"") -> _3 | AC9: =IFERROR(INDEX(AB7:AB9,SMALL((IF(LEN(AB7:AB9),ROW(INDIRECT("1:"&ROWS(AB7:AB9))))),ROW(A3)),1),"") -> _3 | AD9: =IF(I47="Yes",B47,"") -> _C | AE9: =IFERROR(INDEX(AD7:AD10,SMALL((IF(LEN(AD7:AD10),ROW(INDIRECT("1:"&ROWS(AD7:AD10))))),ROW(A3)),1),"") -> _D
B10: Determine the percent of males expected to use urinals (enter 100% if all male restrooms have urinals, 0% if the project contains no urinals, etc) | Z10: Flow | AA10: =I64 -> 22806 | AD10: =IF(I48="Yes",B48,"") -> _D | AE10: =IFERROR(INDEX(AD7:AD10,SMALL((IF(LEN(AD7:AD10),ROW(INDIRECT("1:"&ROWS(AD7:AD10))))),ROW(A4)),1),"") -> 
B11: Percent of males expected to use restrooms with urinals | I11: 1
B12: Enter the number of days the project is accessible to employees or FTE.
B13: Annual days of operation | I13: 252
B14: =IF(I13>365,"Annual days of operation must be between 1 and 365.","") -> 
B15: Table 2. Flush Fixtures Baseline Case
B16: 1. Indicate whether the Fixture Type is present on the project using the Included in Project column. 2. If necessary, modify the Uses per Day column for non-default uses.
B17: Fixture Reference | C17: Baseline Case Fixture Type | G17: Gender | H17: =IF(Instructions!U40=1,"Default Flush Rate (gpf)","Default Flush Rate (lpf)") -> Default Flush Rate (gpf) | I17: Included in Project | K17: Employees (FTE) | M17: Visitors | O17: Retail Customers | Q17: Students | S17: Residential | U17: =IF($I$6="Other (please specify)","Other",$I$6) -> Other (specify) | X17: =IF(Instructions!$U$40=1,"Total Daily Water Use (gpf)","Total Daily Water Use (lpf)") -> Total Daily Water Use (gpf)
K18: Uses per Day | L18: =IF(Instructions!$U$40=1,"Daily Water Use (gpf)","Daily Water Use (lpf)") -> Daily Water Use (gpf) | M18: Uses per Day | N18: =IF(Instructions!$U$40=1,"Daily Water Use (gpf)","Daily Water Use (lpf)") -> Daily Water Use (gpf) | O18: Uses per Day | P18: =IF(Instructions!$U$40=1,"Daily Water Use (gpf)","Daily Water Use (lpf)") -> Daily Water Use (gpf) | Q18: Uses per Day | R18: =IF(Instructions!$U$40=1,"Daily Water Use (gpf)","Daily Water Use (lpf)") -> Daily Water Use (gpf) | S18: Uses per Day | T18: =IF(Instructions!$U$40=1,"Daily Water Use (gpf)","Daily Water Use (lpf)") -> Daily Water Use (gpf) | U18: Uses per Day | V18: =IF(Instructions!$U$40=1,"Daily Water Use (gpf)","Daily Water Use (lpf)") -> Daily Water Use (gpf)
B19: _1 | C19: =Instructions!$C$27 -> Toilet | G19: =Instructions!$F$27 -> Male | H19: =IF(Instructions!$U$40=1,Instructions!$G$27,Instructions!$I$27) -> 1.6 | I19: Yes | K19: =Instructions!N27+((1-I11)*Instructions!N28) -> 1 | L19: =H19*D8*K19 -> 28.8 | M19: =Instructions!O27+((1-I11)*Instructions!O28) -> 0.1 | N19: =$H19*E8*M19 -> 0.8 | O19: =Instructions!P27+((1-I11)*Instructions!P28) -> 0.1 | P19: =$H19*F8*O19 -> 0 | Q19: =Instructions!Q27+((1-I11)*Instructions!Q28) -> 1 | R19: =$H19*G8*Q19 -> 0 | S19: =Instructions!R27+((1-I11)*Instructions!R28) -> 5 | T19: =$H19*H8*S19 -> 0 | V19: =$H19*I8*U19 -> 0 | X19: =IF(I19="Yes",SUM(L19,R19,N19,P19,T19,V19),0) -> 29.6
B20: _2 | C20: =Instructions!$C$28 -> Toilet | G20: =Instructions!$F$28 -> Female | H20: =IF(Instructions!$U$40=1,Instructions!$G$28,Instructions!$I$28) -> 1.6 | I20: Yes | K20: =Instructions!$N$28 -> 3 | L20: =H20*D9*K20 -> 86.4 | M20: =Instructions!$O$28 -> 0.5 | N20: =$H20*E9*M20 -> 4 | O20: =Instructions!$P$28 -> 0.2 | P20: =$H20*F9*O20 -> 0 | Q20: =Instructions!$Q$28 -> 3 | R20: =$H20*G9*Q20 -> 0 | S20: =Instructions!$R$28 -> 5 | T20: =$H20*H9*S20 -> 0 | V20: =$H20*I9*U20 -> 0 | X20: =IF(I20="Yes",SUM(L20,R20,N20,P20,T20,V20),0) -> 90.4
B21: _3 | C21: =Instructions!$C$29 -> Urinal | G21: =Instructions!$F$29 -> Male | H21: =IF(Instructions!$U$40=1,Instructions!$G$29,Instructions!$I$29) -> 1 | I21: Yes | K21: =Instructions!N29*I11 -> 2 | L21: =H21*D8*K21 -> 36 | M21: =Instructions!O29*I11 -> 0.4 | N21: =$H21*E8*M21 -> 2 | O21: =Instructions!P29*I11 -> 0.1 | P21: =$H21*F8*O21 -> 0 | Q21: =Instructions!Q29*I11 -> 2 | R21: =$H21*G8*Q21 -> 0 | S21: =Instructions!$R$29*I11 -> 0 | T21: =$H21*H8*S21 -> 0 | V21: =$H21*I8*U21 -> 0 | X21: =IF(I21="Yes",SUM(L21,R21,N21,P21,T21,V21),0) -> 38
B22: =IF(Instructions!$U$40=1,"Baseline case annual flush volume (gallons/year)","Baseline case annual flush volume (liters/year)") -> Baseline case annual flush volume (gallons/year) | I22: =(SUM(X19:X21)*$I$13) -> 39816
B24: For projects with dual-flush toilets
B25: Enter the resulting per flush rate into the design case flush rate section for toilet. | D25: =IF(Instructions!$U$40=1,"Low Flush (gpf)","Low Flush (lpf)") -> Low Flush (gpf) | E25: =IF(Instructions!$U$40=1,"High Flush (gpf)","High Flush (lpf)") -> High Flush (gpf) | F25: =IF(Instructions!$U$40=1,"Average Flush Rate (gpf)","Average Flush Rate (lpf)") -> Average Flush Rate (gpf)
D26: 0.8 | E26: 1.6 | F26: =((D26*2)+E26)/3 -> 1.07
B28: Table 3. Flush Fixtures Design Case
B29: 1. Select the equivalent baseline fixture in the Fixture Reference column. 2. Select the Fixture Type installed on the project. 3. Enter the Flush Rate identified by the manufacturer - for dual flush toilets, use the dual flush calculator to determine average flush rate. 4. Enter Fixture Information that matches the information provided for cutsheets. 5. Enter Percent of Occupants with access to the fixture. If the fixture is installed in all restrooms, use 100%. Percentages for each Fixture Reference must total 100%.
B30: Fixture Reference | C30: Design Case Fixture Type | E30: Gender | F30: Fixture Information | H30: =IF(Instructions!U40=1,"Flush Rate (gpf)","Flush Rate (lpf)") -> Flush Rate (gpf) | I30: Percent of Occupants (%) | K30: Employees (FTE) | M30: Visitors | O30: Retail Customers | Q30: Students | S30: Residential | U30: =IF($I$6="Other (please specify)","Other",$I$6) -> Other (specify) | X30: =IF(Instructions!$U$40=1,"Total Daily Water Use (gpf)","Total Daily Water Use (lpf)") -> Total Daily Water Use (gpf)
F31: Fixture Manufact. | G31: Fixture Model | K31: Uses per Day | L31: =IF(Instructions!$U$40=1,"Daily Water Use (gpf)","Daily Water Use (lpf)") -> Daily Water Use (gpf) | M31: Uses per Day | N31: =IF(Instructions!$U$40=1,"Daily Water Use (gpf)","Daily Water Use (lpf)") -> Daily Water Use (gpf) | O31: Uses per Day | P31: =IF(Instructions!$U$40=1,"Daily Water Use (gpf)","Daily Water Use (lpf)") -> Daily Water Use (gpf) | Q31: Uses per Day | R31: =IF(Instructions!$U$40=1,"Daily Water Use (gpf)","Daily Water Use (lpf)") -> Daily Water Use (gpf) | S31: Uses per Day | T31: =IF(Instructions!$U$40=1,"Daily Water Use (gpf)","Daily Water Use (lpf)") -> Daily Water Use (gpf) | U31: Uses per Day | V31: =IF(Instructions!$U$40=1,"Daily Water Use (gpf)","Daily Water Use (lpf)") -> Daily Water Use (gpf)
A32: =IF(B32>=0,0,0) -> 0 | B32: _1 | C32: Dual-Flush Water Closet | E32: =IF(ISBLANK(B32),"",VLOOKUP(B32,$B$17:$V$21,6,0)) -> Male | F32: Caroma | G32: Caravelle 270 | H32: 1.07 | I32: 100 | K32: =IF(ISBLANK(B32),0,VLOOKUP($B32,$B$18:$V$21,10,0)) -> 1 | L32: =IF(E32="Male",H32*K32*D$8*(I32/100),H32*K32*D$9*(I32/100)) -> 19.26 | M32: =IF(ISBLANK(B32),0,VLOOKUP($B32,$B$18:$V$21,12,0)) -> 0.1 | N32: =IF(E32="Male",$H32*M32*E$8*($I32/100),$H32*M32*E$9*($I32/100)) -> 0.54 | O32: =IF(ISBLANK(B32),0,VLOOKUP($B32,$B$18:$V$21,14,0)) -> 0.1 | P32: =IF(E32="Male",$H32*O32*F$8*($I32/100),$H32*O32*F$9*($I32/100)) -> 0 | Q32: =IF(ISBLANK(B32),0,VLOOKUP($B32,$B$18:$V$21,16,0)) -> 1 | R32: =IF(E32="Male",$H32*Q32*G$8*($I32/100),$H32*Q32*G$9*($I32/100)) -> 0 | S32: =IF(ISBLANK(B32),0,VLOOKUP($B32,$B$18:$V$21,18,0)) -> 5 | T32: =IF(E32="Male",$H32*S32*H$8*($I32/100),$H32*S32*H$9*($I32/100)) -> 0 | U32: =IF(ISBLANK(B32),0,VLOOKUP($B32,$B$18:$V$21,20,0)) -> 0 | V32: =IF(E32="Male",$H32*U32*I$8*($I32/100),$H32*U32*I$9*($I32/100)) -> 0 | X32: =SUM(L32,R32,N32,P32,T32,V32) -> 19.8
A33: =IF(B33>=0,0,0) -> 0 | B33: _2 | C33: Dual-Flush Water Closet | E33: =IF(ISBLANK(B33),"",VLOOKUP(B33,$B$17:$V$21,6,0)) -> Female | F33: Caroma | G33: Caravelle 270 | H33: 1.07 | I33: 100 | K33: =IF(ISBLANK(B33),0,VLOOKUP($B33,$B$18:$V$21,10,0)) -> 3 | L33: =IF(E33="Male",H33*K33*D$8*(I33/100),H33*K33*D$9*(I33/100)) -> 57.78 | M33: =IF(ISBLANK(B33),0,VLOOKUP($B33,$B$18:$V$21,12,0)) -> 0.5 | N33: =IF(E33="Male",$H33*M33*E$8*($I33/100),$H33*M33*E$9*($I33/100)) -> 2.68 | O33: =IF(ISBLANK(B33),0,VLOOKUP($B33,$B$18:$V$21,14,0)) -> 0.2 | P33: =IF(E33="Male",$H33*O33*F$8*($I33/100),$H33*O33*F$9*($I33/100)) -> 0 | Q33: =IF(ISBLANK(B33),0,VLOOKUP($B33,$B$18:$V$21,16,0)) -> 3 | R33: =IF(E33="Male",$H33*Q33*G$8*($I33/100),$H33*Q33*G$9*($I33/100)) -> 0 | S33: =IF(ISBLANK(B33),0,VLOOKUP($B33,$B$18:$V$21,18,0)) -> 5 | T33: =IF(E33="Male",$H33*S33*H$8*($I33/100),$H33*S33*H$9*($I33/100)) -> 0 | U33: =IF(ISBLANK(B33),0,VLOOKUP($B33,$B$18:$V$21,20,0)) -> 0 | V33: =IF(E33="Male",$H33*U33*I$8*($I33/100),$H33*U33*I$9*($I33/100)) -> 0 | X33: =SUM(L33,R33,N33,P33,T33,V33) -> 60.46
A34: 0 | B34: _3 | C34: Non-Water Urinal | E34: =IF(ISBLANK(B34),"",VLOOKUP(B34,$B$17:$V$21,6,0)) -> Male | F34: Sloan | G34: WES-1000 | H34: 0 | I34: 100 | K34: 2 | L34: =IF(E34="Male",H34*K34*D$8*(I34/100),H34*K34*D$9*(I34/100)) -> 0 | M34: 0.4 | N34: =IF(E34="Male",$H34*M34*E$8*($I34/100),$H34*M34*E$9*($I34/100)) -> 0 | O34: 0.1 | P34: =IF(E34="Male",$H34*O34*F$8*($I34/100),$H34*O34*F$9*($I34/100)) -> 0 | Q34: 2 | R34: =IF(E34="Male",$H34*Q34*G$8*($I34/100),$H34*Q34*G$9*($I34/100)) -> 0 | S34: 0 | T34: =IF(E34="Male",$H34*S34*H$8*($I34/100),$H34*S34*H$9*($I34/100)) -> 0 | U34: 0 | V34: =IF(E34="Male",$H34*U34*I$8*($I34/100),$H34*U34*I$9*($I34/100)) -> 0 | X34: =SUM(L34,R34,N34,P34,T34,V34) -> 0
E35: =IF(ISBLANK(B35),"",VLOOKUP(B35,$B$17:$V$21,6,0)) ->  | K35: 0 | L35: =IF(E35="Male",H35*K35*D$8*(I35/100),H35*K35*D$9*(I35/100)) -> 0 | M35: 0 | N35: =IF(E35="Male",$H35*M35*E$8*($I35/100),$H35*M35*E$9*($I35/100)) -> 0 | O35: 0 | P35: =IF(E35="Male",$H35*O35*F$8*($I35/100),$H35*O35*F$9*($I35/100)) -> 0 | Q35: 0 | R35: =IF(E35="Male",$H35*Q35*G$8*($I35/100),$H35*Q35*G$9*($I35/100)) -> 0 | S35: 0 | T35: =IF(E35="Male",$H35*S35*H$8*($I35/100),$H35*S35*H$9*($I35/100)) -> 0 | U35: 0 | V35: =IF(E35="Male",$H35*U35*I$8*($I35/100),$H35*U35*I$9*($I35/100)) -> 0 | X35: =SUM(L35,R35,N35,P35,T35,V35) -> 0
E36: =IF(ISBLANK(B36),"",VLOOKUP(B36,$B$17:$V$21,6,0)) ->  | K36: 0 | L36: =IF(E36="Male",H36*K36*D$8*(I36/100),H36*K36*D$9*(I36/100)) -> 0 | M36: 0 | N36: =IF(E36="Male",$H36*M36*E$8*($I36/100),$H36*M36*E$9*($I36/100)) -> 0 | O36: 0 | P36: =IF(E36="Male",$H36*O36*F$8*($I36/100),$H36*O36*F$9*($I36/100)) -> 0 | Q36: 0 | R36: =IF(E36="Male",$H36*Q36*G$8*($I36/100),$H36*Q36*G$9*($I36/100)) -> 0 | S36: 0 | T36: =IF(E36="Male",$H36*S36*H$8*($I36/100),$H36*S36*H$9*($I36/100)) -> 0 | U36: 0 | V36: =IF(E36="Male",$H36*U36*I$8*($I36/100),$H36*U36*I$9*($I36/100)) -> 0 | X36: =SUM(L36,R36,N36,P36,T36,V36) -> 0
A37: A | B37: =IF(Instructions!$U$40=1,"Design case annual flush volume (gallons/year)","Design case annual flush volume (liters/year)") -> Design case annual flush volume (gallons/year) | I37: =(SUM(X32:X36)*$I$13) -> 20225.52
B41: Table 4. Flow Fixtures Baseline Case
B42: 1. Indicate whether the Fixture Type is present on the project using the Included in Project column. 2. If necessary, modify the Uses per Day column for non-default uses.
B43: Fixture Reference | C43: Baseline Case Fixture Type | F43: =IF(Instructions!U40=1,"Default Flow Rate (gpm)","Default Flow Rate (lpm)") -> Default Flow Rate (gpm) | G43: Duration | I43: =I17 -> Included in Project | K43: Employees (FTE) | M43: Visitors | O43: Retail Customers | Q43: Students | S43: Residential | U43: =IF($I$6="Other (please specify)","Other",$I$6) -> Other (specify) | X43: =IF(Instructions!$U$40=1,"Total Daily Water Use (gpf)","Total Daily Water Use (lpm)") -> Total Daily Water Use (gpf)
G44: Non- Residential (sec) | H44: Residential (sec) | K44: Uses per Day | L44: =IF(Instructions!$U$40=1,"Daily Water Use (gpf)","Daily Water Use (lpm)") -> Daily Water Use (gpf) | M44: Uses per Day | N44: =IF(Instructions!$U$40=1,"Daily Water Use (gpf)","Daily Water Use (lpm)") -> Daily Water Use (gpf) | O44: Uses per Day | P44: =IF(Instructions!$U$40=1,"Daily Water Use (gpf)","Daily Water Use (lpm)") -> Daily Water Use (gpf) | Q44: Uses per Day | R44: =IF(Instructions!$U$40=1,"Daily Water Use (gpf)","Daily Water Use (lpm)") -> Daily Water Use (gpf) | S44: Uses per Day | T44: =IF(Instructions!$U$40=1,"Daily Water Use (gpf)","Daily Water Use (lpm)") -> Daily Water Use (gpf) | U44: Uses per Day | V44: =IF(Instructions!$U$40=1,"Daily Water Use (gpf)","Daily Water Use (lpm)") -> Daily Water Use (gpf)
B45: _A | C45: =Instructions!$C$30 -> Public lavatory (restroom) faucet | F45: =IF(Instructions!$U$40=1,Instructions!$G$30,Instructions!$I$30) -> 0.5 | G45: =Instructions!$K$30 -> 30 | H45: =Instructions!$L$30 -> 0 | I45: Yes | K45: =Instructions!$N$30 -> 3 | L45: =$F45*($G45/60)*$K45*D$7 -> 26.25 | M45: =Instructions!$O$30 -> 0.5 | N45: =$F45*($G45/60)*M45*$E$7 -> 1.25 | O45: =Instructions!$P$30 -> 0.2 | P45: =$F45*($G45/60)*O45*$F$7 -> 0 | Q45: =Instructions!$Q$30 -> 3 | R45: =$F45*($G45/60)*$Q45*$G$7 -> 0 | S45: =Instructions!$R$30 -> 0 | T45: =F45*($H45/60)*S45*$H$7 -> 0 | V45: =$F45*($G45/60)*U45*$I$7 -> 0 | X45: =IF(I45="Yes",SUM(L45,R45,N45,P45,T45,V45),0) -> 27.5
B46: _B | C46: =Instructions!$C$31 -> Private lavatory faucet | F46: =IF(Instructions!$U$40=1,Instructions!$G$31,Instructions!$I$31) -> 2.2 | G46: =Instructions!$K$31 -> 30 | H46: =Instructions!$L$31 -> 60 | I46: No | K46: =Instructions!$N$31 -> 0 | L46: =$F46*($G46/60)*$K46*D$7 -> 0 | M46: =Instructions!$O$31 -> 0 | N46: =$F46*($G46/60)*M46*$E$7 -> 0 | O46: =Instructions!$P$31 -> 0 | P46: =$F46*($G46/60)*O46*$F$7 -> 0 | Q46: =Instructions!$Q$31 -> 0 | R46: =$F46*($G46/60)*$Q46*$G$7 -> 0 | S46: =Instructions!$R$31 -> 5 | T46: =F46*($H46/60)*S46*$H$7 -> 0 | V46: =$F46*($G46/60)*U46*$I$7 -> 0 | X46: =IF(I46="Yes",SUM(L46,R46,N46,P46,T46,V46),0) -> 0
B47: _C | C47: =Instructions!$C$32 -> Kitchen faucet | F47: =IF(Instructions!$U$40=1,Instructions!$G$32,Instructions!$I$32) -> 2.2 | G47: =Instructions!$K$32 -> 15 | H47: =Instructions!$L$32 -> 60 | I47: Yes | K47: =Instructions!$N$32 -> 1 | L47: =$F47*($G47/60)*$K47*D$7 -> 19.25 | M47: =Instructions!$O$32 -> 0 | N47: =$F47*($G47/60)*M47*$E$7 -> 0 | O47: =Instructions!$P$32 -> 0 | P47: =$F47*($G47/60)*O47*$F$7 -> 0 | Q47: =Instructions!$Q$32 -> 0 | R47: =$F47*($G47/60)*$Q47*$G$7 -> 0 | S47: =Instructions!$R$32 -> 4 | T47: =F47*($H47/60)*S47*$H$7 -> 0 | V47: =$F47*($G47/60)*U47*$I$7 -> 0 | X47: =IF(I47="Yes",SUM(L47,R47,N47,P47,T47,V47),0) -> 19.25
B48: _D | C48: =Instructions!$C$33 -> Showerhead | F48: =IF(Instructions!$U$40=1,Instructions!$G$33,Instructions!$I$33) -> 2.5 | G48: =Instructions!$K$33 -> 300 | H48: =Instructions!$L$33 -> 480 | I48: Yes | K48: =Instructions!$N$33 -> 0.1 | L48: =$F48*($G48/60)*$K48*D$7 -> 43.75 | M48: =Instructions!$O$33 -> 0 | N48: =$F48*($G48/60)*M48*$E$7 -> 0 | O48: =Instructions!$P$33 -> 0 | P48: =$F48*($G48/60)*O48*$F$7 -> 0 | Q48: =Instructions!$Q$33 -> 0 | R48: =$F48*($G48/60)*$Q48*$G$7 -> 0 | S48: =Instructions!$R$33 -> 1 | T48: =F48*($H48/60)*S48*$H$7 -> 0 | V48: =$F48*($G48/60)*U48*$I$7 -> 0 | X48: =IF(I48="Yes",SUM(L48,R48,N48,P48,T48,V48),0) -> 43.75
B49: =IF(Instructions!$U$40=1,"Baseline case annual flow volume (gallons/year)","Baseline case annual flow volume (liters/year)") -> Baseline case annual flow volume (gallons/year) | I49: =(SUM(X45:X48)*$I$13) -> 22806
B51: For projects with metering faucets
B52: Enter the resulting per minute flow rate into the design case flow rate section for public lavatory faucet. | D52: =IF(Instructions!$U$40=1,"Gallons per Cycle","Liters per Cycle") -> Gallons per Cycle | E52: Cycle Duration (sec) | F52: =IF(Instructions!$U$40=1,"Flow Rate (gpm)","Flow Rate (lpm)") -> Flow Rate (gpm)
F53: =IFERROR((D53*60)/E53,0) -> 0
B55: Table 5. Flow Fixtures Design Case
B56: 1. Select the equivalent baseline fixture in the Fixture Reference column. 2. Select the Fixture Type installed on the project. 3. Enter the Flow Rate identified by the manufacturer - for metering faucets, use the metering faucet calculator to determine flow rate. 4. Enter Fixture Information that matches the information provided for cutsheets. 5. Enter Percent of Occupants with access to the fixture. If the fixture is installed in all restrooms, use 100%. Percentages for each Fixture Reference must total 100%.
B57: Fixture Reference | C57: Design Case Fixture Type | D57: =IF(Instructions!U40=1,"Flow Rate (gpm)","Flow Rate (lpm)") -> Flow Rate (gpm) | E57: Percent of Occupants (%) | F57: Fixture Information | H57: Duration | K57: Employees (FTE) | M57: Visitors | O57: Retail Customers | Q57: Students | S57: Residential | U57: =IF($I$6="Other (please specify)","Other",$I$6) -> Other (specify) | X57: =IF(Instructions!$U$40=1,"Total Daily Water Use (gpf)","Total Daily Water Use (lpm)") -> Total Daily Water Use (gpf)
F58: Fixture Manufact. | G58: Fixture Model | H58: Non- Residential (sec) | I58: Residential (sec) | K58: Uses per Day | L58: =IF(Instructions!$U$40=1,"Daily Water Use (gpf)","Daily Water Use (lpm)") -> Daily Water Use (gpf) | M58: Uses per Day | N58: =IF(Instructions!$U$40=1,"Daily Water Use (gpf)","Daily Water Use (lpm)") -> Daily Water Use (gpf) | O58: Uses per Day | P58: =IF(Instructions!$U$40=1,"Daily Water Use (gpf)","Daily Water Use (lpm)") -> Daily Water Use (gpf) | Q58: Uses per Day | R58: =IF(Instructions!$U$40=1,"Daily Water Use (gpf)","Daily Water Use (lpm)") -> Daily Water Use (gpf) | S58: Uses per Day | T58: =IF(Instructions!$U$40=1,"Daily Water Use (gpf)","Daily Water Use (lpm)") -> Daily Water Use (gpf) | U58: Uses per Day | V58: =IF(Instructions!$U$40=1,"Daily Water Use (gpf)","Daily Water Use (lpm)") -> Daily Water Use (gpf)
A59: =IF(B59>=0,1,1) -> 1 | B59: _A | C59: =IF(ISBLANK(B59),"",VLOOKUP(B59,B$43:V$48,2,0)) -> Public lavatory (restroom) faucet | D59: 0.5 | E59: 100 | F59: Sloan | G59: EAF-275 | H59: =IF(ISBLANK(B59),0,VLOOKUP(B59,$B$45:$U$48,6,0)) -> 30 | I59: =IF(ISBLANK(B59),0,VLOOKUP(B59,$B$45:$U$48,7,0)) -> 0 | K59: =IF(ISBLANK(B59),0,VLOOKUP($B59,$B$43:$V$48,10,0)) -> 3 | L59: =$D59*($H59/60)*K59*($D$7*($E59/100)) -> 26.25 | M59: =IF(ISBLANK(B59),0,VLOOKUP($B59,$B$43:$V$48,12,0)) -> 0.5 | N59: =$D59*($H59/60)*M59*(E$7*($E59/100)) -> 1.25 | O59: =IF(ISBLANK(B59),0,VLOOKUP($B59,$B$43:$V$48,14,0)) -> 0.2 | P59: =$D59*($H59/60)*O59*(F$7*($E59/100)) -> 0 | Q59: =IF(ISBLANK(B59),0,VLOOKUP($B59,$B$43:$V$48,16,0)) -> 3 | R59: =$D59*($H59/60)*Q59*($G$7*($E59/100)) -> 0 | S59: =IF(ISBLANK(B59),0,VLOOKUP($B59,$B$43:$V$48,18,0)) -> 0 | T59: =$D59*($I59/60)*S59*($H$7*($E59/100)) -> 0 | U59: =IF(ISBLANK(B59),0,VLOOKUP($B59,$B$43:$V$48,20,0)) -> 0 | V59: =$D59*($H59/60)*U59*(I$7*($E59/100)) -> 0 | X59: =SUM(L59,R59,N59,P59,T59,V59) -> 27.5
A60: =IF(B60>=0,1,1) -> 1 | B60: _C | C60: =IF(ISBLANK(B60),"",VLOOKUP(B60,B$43:V$48,2,0)) -> Kitchen faucet | D60: 2.2 | E60: 100 | F60: Delta | G60: 23C334 | H60: =IF(ISBLANK(B60),0,VLOOKUP(B60,$B$45:$U$48,6,0)) -> 15 | I60: =IF(ISBLANK(B60),0,VLOOKUP(B60,$B$45:$U$48,7,0)) -> 60 | K60: =IF(ISBLANK(B60),0,VLOOKUP($B60,$B$43:$V$48,10,0)) -> 1 | L60: =$D60*($H60/60)*K60*($D$7*($E60/100)) -> 19.25 | M60: =IF(ISBLANK(B60),0,VLOOKUP($B60,$B$43:$V$48,12,0)) -> 0 | N60: =$D60*($H60/60)*M60*(E$7*($E60/100)) -> 0 | O60: =IF(ISBLANK(B60),0,VLOOKUP($B60,$B$43:$V$48,14,0)) -> 0 | P60: =$D60*($H60/60)*O60*(F$7*($E60/100)) -> 0 | Q60: =IF(ISBLANK(B60),0,VLOOKUP($B60,$B$43:$V$48,16,0)) -> 0 | R60: =$D60*($H60/60)*Q60*($G$7*($E60/100)) -> 0 | S60: =IF(ISBLANK(B60),0,VLOOKUP($B60,$B$43:$V$48,18,0)) -> 4 | T60: =$D60*($I60/60)*S60*($H$7*($E60/100)) -> 0 | U60: =IF(ISBLANK(B60),0,VLOOKUP($B60,$B$43:$V$48,20,0)) -> 0 | V60: =$D60*($H60/60)*U60*(I$7*($E60/100)) -> 0 | X60: =SUM(L60,R60,N60,P60,T60,V60) -> 19.25
A61: 1 | B61: _D | C61: =IF(ISBLANK(B61),"",VLOOKUP(B61,B$43:V$48,2,0)) -> Showerhead | D61: 2.5 | E61: 100 | F61: Symmons | G61: 96-500-B30-L-V | H61: =IF(ISBLANK(B61),0,VLOOKUP(B61,$B$45:$U$48,6,0)) -> 300 | I61: =IF(ISBLANK(B61),0,VLOOKUP(B61,$B$45:$U$48,7,0)) -> 480 | K61: 0.1 | L61: =$D61*($H61/60)*K61*($D$7*($E61/100)) -> 43.75 | M61: 0 | N61: =$D61*($H61/60)*M61*(E$7*($E61/100)) -> 0 | O61: 0 | P61: =$D61*($H61/60)*O61*(F$7*($E61/100)) -> 0 | Q61: 0 | R61: =$D61*($H61/60)*Q61*($G$7*($E61/100)) -> 0 | S61: 1 | T61: =$D61*($I61/60)*S61*($H$7*($E61/100)) -> 0 | U61: 0 | V61: =$D61*($H61/60)*U61*(I$7*($E61/100)) -> 0 | X61: =SUM(L61,R61,N61,P61,T61,V61) -> 43.75
C62: =IF(ISBLANK(B62),"",VLOOKUP(B62,B$43:V$48,2,0)) ->  | H62: =IF(ISBLANK(B62),0,VLOOKUP(B62,$B$45:$U$48,6,0)) -> 0 | I62: =IF(ISBLANK(B62),0,VLOOKUP(B62,$B$45:$U$48,7,0)) -> 0 | K62: 0 | L62: =$D62*($H62/60)*K62*($D$7*($E62/100)) -> 0 | M62: 0 | N62: =$D62*($H62/60)*M62*(E$7*($E62/100)) -> 0 | O62: 0 | P62: =$D62*($H62/60)*O62*(F$7*($E62/100)) -> 0 | Q62: 0 | R62: =$D62*($H62/60)*Q62*($G$7*($E62/100)) -> 0 | S62: 0 | T62: =$D62*($I62/60)*S62*($H$7*($E62/100)) -> 0 | U62: 0 | V62: =$D62*($H62/60)*U62*(I$7*($E62/100)) -> 0 | X62: =SUM(L62,R62,N62,P62,T62,V62) -> 0
C63: =IF(ISBLANK(B63),"",VLOOKUP(B63,B$43:V$48,2,0)) ->  | H63: =IF(ISBLANK(B63),0,VLOOKUP(B63,$B$45:$U$48,6,0)) -> 0 | I63: =IF(ISBLANK(B63),0,VLOOKUP(B63,$B$45:$U$48,7,0)) -> 0 | K63: 0 | L63: =$D63*($H63/60)*K63*($D$7*($E63/100)) -> 0 | M63: 0 | N63: =$D63*($H63/60)*M63*(E$7*($E63/100)) -> 0 | O63: 0 | P63: =$D63*($H63/60)*O63*(F$7*($E63/100)) -> 0 | Q63: 0 | R63: =$D63*($H63/60)*Q63*($G$7*($E63/100)) -> 0 | S63: 0 | T63: =$D63*($I63/60)*S63*($H$7*($E63/100)) -> 0 | U63: 0 | V63: =$D63*($H63/60)*U63*(I$7*($E63/100)) -> 0 | X63: =SUM(L63,R63,N63,P63,T63,V63) -> 0
A64: B | B64: =IF(Instructions!$U$40=1,"Design case annual flow volume (gallons/year)","Design case annual flow volume (liters/year)") -> Design case annual flow volume (gallons/year) | I64: =(SUM(X59:X63)*$I$13) -> 22806

Sheet Summary D+C
C2: 1
C3: 1 | D3: Summary for Design and Construction Rating Systems
C4: 1 | D4: Note: Baseline and design volumes are READ-ONLY. To edit, see the previous tab(s).
C5: 1
C6: 1
C7: 1
C8: 1 | D8: Group Name | E8: Percent Occupants using Group (%) | F8: Baseline Case | J8: Design Case
F9: =IF(Instructions!U40=1,"(gallons/year)","(liters/year)") -> (gallons/year) | J9: =IF(Instructions!U40=1,"(gallons/year)","(liters/year)") -> (gallons/year)
C10: 1 | F10: Annual Flush Volume | G10: Annual Flow Volume | H10: Annual Baseline Consumption | I10: Total Baseline Consumption | J10: Annual Flush Volume | K10: Annual Flow Volume | L10: Annual Design Consumption | M10: Total Design Consumption
C11: =IF(OR(D11="Introduction",D11="Base Calc",D11="Summary D+C",D11="Summary O+M",D11="",D11=0),0,1) -> 1 | D11: =IFERROR(INDEX(MID(Sheets,FIND("]",Sheets)+1,255),ROW(A3),1),"") -> Group 1 | F11: =INDIRECT("'"&D11&"'!$AA$7") -> 39816 | G11: =INDIRECT("'"&$D11&"'!$AA$8") -> 22806 | H11: =F11+G11 -> 62622 | I11: =H11*E11 -> 0 | J11: =INDIRECT("'"&$D11&"'!$AA$9") -> 20225.52 | K11: =INDIRECT("'"&$D11&"'!$AA$10") -> 22806 | L11: =J11+K11 -> 43031.52 | M11: =L11*E11 -> 0
C12: 1
B13: A | C13: 1 | D13: =IF(Instructions!U40=1,"Annual baseline water consumption (gallons/year)","Annual baseline water consumption (liters/year)") -> Annual baseline water consumption (gallons/year) | M13: =SUM(I11:I12) -> 0
C14: 1 | D14: =IF(Instructions!U40=1,"Annual design water consumption (gallons/year)","Annual design water consumption (liters/year)") -> Annual design water consumption (gallons/year) | M14: =SUM(M11:M12) -> 0
C15: 1 | D15: Percent reduction from baseline (%) | M15: =IF(M14=0,0,(M13-M14)/M13) -> 0
C16: 1
G20: =IFERROR(INDEX(MID(Sheets,FIND("]",Sheets)+1,255),ROW(#REF!),1),"") -> 

Sheet Summary O+M
C2: 1
C3: 1 | D3: Summary for Operations and Maintenance Rating Systems
C4: 1 | D4: Note: Baseline and design volumes are READ-ONLY. To edit, see the previous tab(s).
C5: 1
C6: 1
C7: 1 | D7: Unrenovated percentage of fixtures installed before 1995 | G7: 0 | H7: =IF(AND(SUM(F7:F9)>0,SUM(F7:F9)<1),"ERROR: The total percentage of fixtures installed must equal 100.","") -> 
C8: 1
C9: 1 | D9: Renovated percentage of fixtures installed in 1995 or later | G9: 1
C10: 1
C11: 1
C12: 1
C13: 1
C14: 1 | D14: Group Name | E14: Percent Occupants using Group (%) | F14: Baseline Case | J14: Design Case
F15: =IF(Instructions!U40=1,"(gallons/year)","(liters/year)") -> (gallons/year) | J15: =IF(Instructions!U40=1,"(gallons/year)","(liters/year)") -> (gallons/year)
C16: 1 | F16: Annual Flush Volume | G16: Annual Flow Volume | H16: Annual Baseline Consumption | I16: Total Baseline Consumption | J16: Annual Flush Volume | K16: Annual Flow Volume | L16: Annual Design Consumption | M16: Total Design Consumption
C17: =IF(OR(D17="Introduction",D17="Base Calc",D17="Summary D+C",D17="Summary O+M",D17="",D17=0),0,1) -> 1 | D17: =IFERROR(INDEX(MID(Sheets,FIND("]",Sheets)+1,255),ROW(A3),1),"") -> Group 1 | E17: 1 | F17: =INDIRECT("'"&D17&"'!$AA$7") -> 39816 | G17: =INDIRECT("'"&$D17&"'!$AA$8") -> 22806 | H17: =F17+G17 -> 62622 | I17: =H17*E17 -> 62622 | J17: =INDIRECT("'"&$D17&"'!$AA$9") -> 20225.52 | K17: =INDIRECT("'"&$D17&"'!$AA$10") -> 22806 | L17: =J17+K17 -> 43031.52 | M17: =L17*E17 -> 43031.52
C18: 1
B19: A | C19: 1 | D19: =IF(Instructions!U40=1,"Annual baseline water consumption (gallons/year)","Annual baseline water consumption (liters/year)") -> Annual baseline water consumption (gallons/year) | M19: =SUM(I17:I18) -> 62622
C20: 1 | D20: =IF(Instructions!U40=1,"Annual design water consumption (gallons/year)","Annual design water consumption (liters/year)") -> Annual design water consumption (gallons/year) | M20: =SUM(M17:M18) -> 43031.52
C21: 1 | D21: Baseline multiplier (%) | M21: =((G7*150%)+(G9*120%)) -> 1.2
C22: 1 | D22: =IF(Instructions!U40=1,"Water consumption maximum (gallons/year)","Water consumption maximum (liters/year)") -> Water consumption maximum (gallons/year) | M22: =M19*M21 -> 75146.4
C23: 1 | D23: Percentage below water consumption maximum (%) | M23: =IF(M22=0,0,(M22-M20)/M22) -> 0.4274
C24: 1
G28: =IFERROR(INDEX(MID(Sheets,FIND("]",Sheets)+1,255),ROW(#REF!),1),"") -> 
